Cogmind - Beta 10.2 *** ADVENTURER MODE // 2021.09.15 @ 02:02:59 Player: XenoFiery Result: Destroyed by S-10 Pest with Light Assault Rifle Performance ------------- Evolutions (0) 0 Regions Visited (2) 400 Robots Destroyed (6) 30 Value Destroyed (230) 230 Prototype IDs (2) 40 Alien Tech Used (0) 0 Bonus (0) 0 TOTAL SCORE: 700 Bonus ------- None Cogmind --------- Core Integrity 0/250 Matter 278/300 Energy 100/100 System Corruption 0% Temperature Cool (0) Movement Core (50) Location -10/Mines Parts ------- > --- POWER (1) -------- (None) > --- PROPULSION (2) --- (None) > --- UTILITY (2) ------ Terrain Scanner > --- WEAPON (2) ------- (None) > --- INVENTORY (4) ---- Aluminum Leg Improved Heat Sink Peak State ------------ > --- POWER ------------ Light Ion Engine > --- PROPULSION ------- Aluminum Leg Aluminum Leg > --- UTILITY ---------- Improved Heat Sink Signal Interpreter > --- WEAPON ----------- Assault Rifle > --- INVENTORY -------- Aluminum Leg Aluminum Leg [Rating: 8] Favorites ----------- Power Light Ion Engine Engine Light Ion Engine Propulsion Aluminum Leg Leg Aluminum Leg Utility Signal Interpreter Device Improved Heat Sink Processor Signal Interpreter Weapon Light Cannon Energy Gun Small Laser Ballistic Gun Assault Rifle Ballistic Cannon Light Cannon Build | -11 -10 -10 ------- Run | Scr Mat Min Slots Evolved . | . . . Power . | . . . Propulsion . | . . . Utility . | . . . Weapon . | . . . Parts Attached 16 | 5 8 3 Power 1 | 1 . . Engine 1 | 1 . . Core . | . . . Reactor . | . . . Propulsion 5 | 2 2 1 Treads . | . . . Leg 5 | 2 2 1 Wheel . | . . . Hover . | . . . Flight . | . . . Utility 6 | . 4 2 Device 4 | . 2 2 Storage . | . . . Processor 2 | . 2 . Hackware . | . . . Protection . | . . . Artifact . | . . . Weapon 4 | 2 2 . Energy Gun 2 | 1 1 . Energy Cannon . | . . . Ballistic Gun 1 | 1 . . Ballistic Cannon 1 | . 1 . Launcher . | . . . Special Weapon . | . . . Impact Weapon . | . . . Slashing Weapon . | . . . Piercing Weapon . | . . . Special Melee Weapon . | . . . Unidentified Prototypes . | . . . Parts Lost 10 | . 4 6 Power 1 | . 1 . Propulsion 3 | . . 3 Utility 2 | . 1 1 Weapon 4 | . 2 2 Highest Loss Streak 6 | . 3 6 Average Slot Usage (%) 80 | . 82 73 Engine 4 | . 6 . Leg 27 | . 28 25 Device 10 | . 7 21 Processor 14 | . 17 4 Energy Gun 9 | . 9 11 Ballistic Gun 4 | . 6 . Ballistic Cannon 7 | . 7 11 Naked Turns . | . . . Heaviest Build 7 | 7 7 6 Greatest Support 20 | 20 20 20 Greatest Overweight (x) 1 | 1 . . Average Overweight (x) . | . . . Largest Inventory Capacity 4 | 4 4 4 Average Capacity 4 | 4 4 4 Most Carried 4 | 3 4 4 Average Carried 1 | . 1 3 Final Capacity 4 | 4 4 4 Final Carried 4 | . 4 2 Class Distribution -------------------- 65% | Mutant 34% | Scavenger-Mutant Dominant Class ---------------- Mutant | -10/Materials Mutant | -10/Mines Resources | -11 -10 -10 ----------- Run | Scr Mat Min Matter Collected 376 | 235 141 . Remotely . | . . . Salvage Created 244 | . 244 . Parts 12 | . 12 . Haulers Intercepted . | . . . Recyclers Shooed . | . . . Parts Field Recycled . | . . . Retrieved Matter . | . . . Parts Self-Destructed . | . . . Prevented . | . . . Kills | -11 -10 -10 ------- Run | Scr Mat Min Combat Hostiles Destroyed 6 | . 6 . Guns 4 | . 4 . Cannons 2 | . 2 . Classes Destroyed 1 | . 1 . Grunt 6 | . 6 . Best Kill Streak 4 | . 4 . Combat Bots Only 4 | . 4 . Max Kills in Single Turn 1 | . 1 . Gunslinging . | . . . Exploded . | . . . Melee . | . . . Uniques/NPCs Destroyed . | . . . Combat | -11 -10 -10 -------- Run | Scr Mat Min Damage Taken 960 | . 520 440 Core 254 | . 132 122 Absorbed by Shields . | . . . Core Remaining (%) 100 | 100 . . Volleys Fired 27 | . 27 . Largest 2 | . 2 . Hottest 75 | . 75 . Shots Fired 38 | . 38 . Gun 31 | . 31 . Cannon 7 | . 7 . Launcher . | . . . Special . | . . . Kinetic 27 | . 27 . Thermal 11 | . 11 . Explosive . | . . . Electromagnetic . | . . . Robot Hit Streak 12 | . 12 . Robot Miss Streak 4 | . 4 . Penetration Max . | . . . Secondary Targets 1 | . 1 . Max Gunslinging Chain 1 | . 1 . Shots Hit Robots 28 | . 28 . Core Hits 12 | . 12 . Critical Hits . | . . . Critical Kills . | . . . Critical Parts Destroyed . | . . . Melee Attacks . | . . . Impact . | . . . Slashing . | . . . Piercing . | . . . Sneak Attacks . | . . . Combat Hostiles . | . . . Follow-up Attacks . | . . . Damage Inflicted 378 | . 378 . Guns 320 | . 320 . Cannons 58 | . 58 . Explosions . | . . . Melee . | . . . Ramming . | . . . Kinetic 301 | . 301 . Thermal 77 | . 77 . Explosive . | . . . Electromagnetic . | . . . Impact . | . . . Slashing . | . . . Piercing . | . . . Highest Corruption . | . . . Average Corruption . | . . . Corruption Purged . | . . . Overload Shots . | . . . Overflow Damage . | . . . Projectiles . | . . . Explosions . | . . . Melee . | . . . Knockbacks 1 | . 1 . Impact . | . . . Kinetic 1 | . 1 . Secondary . | . . . Self-Inflicted Damage . | . . . Shots . | . . . Rammed . | . . . Targets Rammed . | . . . Kicked . | . . . Crushed . | . . . Highest Temperature 159 | . 159 . Average Temperature 71 | . 71 . Received Heat Transfer 387 | . 387 . Siege Activations . | . . . Robots Corrupted . | . . . Combat Hostiles . | . . . Parts Fried . | . . . Impact Corruptions . | . . . Robots Melted . | . . . Combat Hostiles . | . . . Parts Melted . | . . . Heat Transferred 222 | . 222 . Parts Sabotaged . | . . . Parts Stolen . | . . . Parts Stripped . | . . . Power Chain Reactions . | . . . Missiles Intercepted . | . . . Alert | -11 -10 -10 ------- Run | Scr Mat Min Peak Influence 115 | . 115 37 Initial 37 | . . 37 Average 53 | . 71 31 Maximum Alert Level . | . . . Low Security (%) 100 | 100 100 100 Level 1 . | . . . Level 2 . | . . . Level 3 . | . . . Level 4 . | . . . Level 5 . | . . . High Security . | . . . Max Security . | . . . Squads Dispatched . | . . . Investigation . | . . . Extermination . | . . . Reinforcement . | . . . Assault . | . . . Garrison . | . . . Intercept . | . . . Construction Impeded . | . . . Haulers Reinforced . | . . . Stealth | -11 -10 -10 --------- Run | Scr Mat Min Distress Signals . | . . . Communications Jammed . | . . . Distress Signals . | . . . Times Spotted 18 | . 13 5 Peak Tracking Total 5 | . 4 5 Tactical Retreats . | . . . Traps | -11 -10 -10 ------- Run | Scr Mat Min Traps Triggered . | . . . Indirectly . | . . . Trap Hack Attempts . | . . . Triggered . | . . . Disarmed . | . . . Reprogrammed . | . . . Reused . | . . . Traps Extracted . | . . . Installed . | . . . Triggered . | . . . Machines | -11 -10 -10 ---------- Run | Scr Mat Min Machines Disabled . | . . . Max in Single Turn . | . . . Machines Sabotaged . | . . . Garrisons Compromised . | . . . Overloaded Fab Kills . | . . . Fab Network Shutdowns . | . . . Hacking | -11 -10 -10 --------- Run | Scr Mat Min Machines Accessed 1 | . 1 . Terminals 1 | . 1 . Fabricators . | . . . Repair Stations . | . . . Recycling Units . | . . . Scanalyzers . | . . . Garrison Access . | . . . Total Hacks 3 | . 3 . Successful 2 | . 2 . Failed 1 | . 1 . Catastrophic . | . . . Database Lockouts . | . . . Manual . | . . . Terminals 3 | . 3 . Fabricators . | . . . Repair Stations . | . . . Recycling Units . | . . . Scanalyzers . | . . . Garrison Access . | . . . Terminal Hacks 2 | . 2 . Prototype ID Bank 1 | . 1 . Zone Layout 1 | . 1 . Fabricator Hacks . | . . . Repair Station Hacks . | . . . Recycling Unit Hacks . | . . . Scanalyzer . | . . . Garrison Access Hacks . | . . . Unauthorized Hacks . | . . . Terminals . | . . . Fabricators . | . . . Repair Stations . | . . . Recycling Units . | . . . Scanalyzers . | . . . Garrison Access . | . . . Data Cores Recovered . | . . . Used . | . . . Hacking Detections 1 | . 1 . Full Trace Events . | . . . Feedback Events . | . . . Feedback Blocked . | . . . Robot Schematics Acquired . | . . . Robots Built . | . . . Matter . | . . . Time . | . . . Total Robot Build Rating . | . . . Part Schematics Acquired . | . . . Parts Built . | . . . Matter . | . . . Time . | . . . Total Part Build Rating . | . . . Parts Repaired . | . . . Time . | . . . Parts Recycled . | . . . Recycled Matter . | . . . Retrieved Matter . | . . . Retrieved Components . | . . . Parts Scanalyzed . | . . . Part Schematics Acquired . | . . . Parts Damaged . | . . . Bothacking | -11 -10 -10 ------------ Run | Scr Mat Min Used RIF Installer . | . . . Robots Hacked . | . . . Non-combat . | . . . Combat . | . . . Robot Hacks Applied . | . . . Relay Couplers Released . | . . . Robots Rewired . | . . . Allies Hacked . | . . . Hacks Repelled . | . . . Allies | -11 -10 -10 -------- Run | Scr Mat Min Total Allies . | . . . Largest Group . | . . . Highest-Rated Group . | . . . Highest-Rated Ally . | . . . Total Orders . | . . . Ally Attacks . | . . . Total Damage . | . . . Kills . | . . . Allies Corrupted . | . . . Allies Melted . | . . . Intel | -11 -10 -10 ------- Run | Scr Mat Min Robot Analysis Total . | . . . Derelict Logs Recovered . | . . . Drone Launches . | . . . Drone Recoveries . | . . . Exploration | -11 -10 -10 ------------- Run | Scr Mat Min Turns Passed 571 | 90 384 97 Spaces Moved 407 | 74 249 84 Core 30 | 18 . 12 Treads . | . . . Legs 377 | 56 249 72 Wheels . | . . . Hover . | . . . Flight . | . . . Fastest Speed 50 | 50 120 50 Average Speed 115 | 109 120 110 Slowest Speed 120 | 120 120 120 Overloaded Moves . | . . . Propulsion Burnouts . | . . . Robots Hopped . | . . . Cave-ins Triggered . | . . . Exploration Rate (%) 21 | 4 34 25 Regions Visited 2 Branch Regions 1 Pre-discovered Areas . | . . . Known Exits Taken 1 | . 1 . Unknown Exits Taken 1 | 1 . . Scrap Searched . | . . . Spaces Dug . | . . . Terrain Destroyed . | . . . Melee . | . . . Projectile . | . . . AOE . | . . . Terrain Rammed . | . . . Walls Destroyed . | . . . Machines Disabled . | . . . Actions | -11 -10 -10 --------- Run | Scr Mat Min Total 465 | 83 295 87 Wait . | . . . Move 405 | 73 248 84 Hop . | . . . Pick Up 16 | 5 11 . Fast Attach . | . . . Attach 11 | 5 5 1 Detach . | . . . Swap 5 | . 3 2 Drop 1 | . 1 . Fire 27 | . 27 . Melee . | . . . Ram . | . . . Kick . | . . . Crush . | . . . Escape Stasis . | . . . Rewire . | . . . Trap . | . . . Miscellaneous . | . . . Route ------- -11/Scrapyard -10/Materials -10/Mines History --------- Turn | Location | Event 20 | -11/Scrapyard | Discovered new exit (range 14) 91 | -11/Scrapyard | Entered Materials 282 | -10/Materials | Core integrity fell below 50% 292 | -10/Materials | Lost 3 parts (1p1u1w) 302 | -10/Materials | Build established: Mutant 394 | -10/Materials | Discovered new exit (range 15) 423 | -10/Materials | Identified exit to Mines 475 | -10/Materials | Entered Mines 542 | -10/Mines | Assembled infested the area 567 | -10/Mines | Core integrity fell below 20% 572 | -10/Mines | Destroyed by S-10 Pest with Light Assault Rifle Last Messages --------------- 00523_ K-01 Serf collects debris. 00542_ ALERT: Infestation in the mines, dispatching Demolisher response squad. 00551_ C-30 ARC bursts open, deploying its payload. 00555_ S-10 Pest destroyed. 00556_ Aluminum Leg destroyed. 00558_ Lgt. Cannon destroyed. 00558_ Sml. Laser destroyed. 00559_ Terrain Scanner destroyed. 00561_ U-05 Engineer builds a Wall. 00562_ The unstable cave ceiling collapses. 00564_ U-05 Engineer lays Concrete. 00564_ K-01 Serf collects debris. 00565_ U-05 Engineer builds a Wall. 00565_ Aluminum Leg destroyed. 00567_ U-05 Engineer lays Concrete. 00568_ The unstable cave ceiling collapses. 00568_ K-01 Serf collects debris. 00568_ U-05 Engineer lays Concrete. 00569_ The unstable cave ceiling collapses. Map ----- +----------------------------------------------------+ | | | ????????????????????????????????????????????? | | ????????????????????????????????????????????? | | ???????????????????????????????###??????????? | | ??????????????????????????????# ##?????????? | | ?????????????????????????????# ##????????? | | ???????????????????????????## ##???????? | | ??????????????????????????# #???????? | | ??????????????????????#### #???????? | | ??????????????????#??## #????????? | | ???????????????###???# #??#?????? | | ??????????????# ##??# #????????? | | ????????????## #???# ?????????? | | ????????##### ????# ?????????????? | | ???????## ????## #????????????????? | | ??????## """ #???### ##????????????????? | | ??????# """ #???## #?????????????????? | | ???#### """ ##### t##????????????????? | | ???# ####?????????????? | | ???????# ##????????????? | | ???????### ##### ##???????????? | | ?????????## #??## #????????????? | | ??????????## ##?## #????????????? | | ???????????####?## ##????????????? | | ???????????#???## k ## #?????????????? | | ???????????????# @ ##?# ##????????????? | | ???????????????# ##?# ##???????????? | | ???????????????# ## #???????????? | | ??????????????## #???????????? | | ?????????#????## ##???????????? | | ?????????????## ##????????????? | | ?????????????# #?????????????? | | ?????????????# #?#???????????? | | ?????????????## ##?????????????? | | ??????????????## #####?????????????? | | ??????????????# ##?????????????????? | | ??????????????## ##?????????????????? | | ?????????????### ##????????????????? | | ?????????????# #????#???????????? | | ????????#????# #????????????????? | | ?????????????# sd ##????????????????? | | ????????????## ## # #?#??#????????????? | | ????????????# ## ##????????????????? | | ????????????# [ # ##? #?????????????????? | | ????????????#* # #???#?????????????????? | | ????????????##% ##?????????????????????? | | ??????????? =#[ # #####?????????????????????? | | ????????? ##??????????????????????????? | | ????????## " #???????????????????????????? | | ?????????##"%" #???????????????????????????? | +----------------------------------------------------+ Best States ------------- Heat Dissipation 39 Energy Generation 10 Energy Capacity 125 Matter Stores 300 Matter Capacity 300 Sight Range 16 Terrain Scan Range 14 Terrain Scan Density 10 Resistance: KI 20 Resistance: TH 20 Resistance: EX 20 Resistance: EM 20 Resistance: I 20 Resistance: S 20 Resistance: P 20 Evasion (%) 50 Offensive Hacking 10 Item Schematics ----------------- None Robot Schematics ------------------ None Fabricated ------------ Nothing Alien Tech Used ----------------- None Achievements -------------- None Challenges ------------ None Game ------ Seed ShockWarpSuite Manual? 0 Play Time 00:08:50 Cumulative 8.5 hours Start 2021.09.15 @ 01:54:20 End 2021.09.15 @ 02:02:59 Sessions 1 Manual Loads 0 Difficulty Adventurer Special Mode None Game No. 27 Rogue 25 Adventurer 2 Explorer 0 Win Type - Total 0 Types 0/0/0/0/0/0/0/0/0 Lore% 13 Gallery% 13 Achievement% 11 Wizard Run 0 Options --------- ASCII 0 Keyboard 0 Movement Arrows Keybinds 0 Fullscreen 1 Font 18/SmallcapsGlow Map View 76x50 Tactical HUD 1 Map Filters NONE Filters NONE Steam 1 RUN: 90ab788e-7cd9-409e-b478-e83f2249764e